fUST/lending_fUST_20240626
["ID","MTS","AMOUNT","RATE_DAILY","PERIOD"]
[330442034,1719413313642,-700.1078946,0.00014001,2]
[330442035,1719413313722,-371.52403311,0.00014001,2]
[330442080,1719413432754,-504.74784099,0.00014001,2]
[330442081,1719413432765,-300.0,0.00014015,2]
[330442082,1719413432775,-300.0,0.00014015,2]
[330442083,1719413432784,-24909.65371443,0.00014016,2]
[330442097,1719413438547,-2574.49983601,0.00014016,2]
[330442098,1719413438559,-3014.52941703,0.00014016,2]
[330442099,1719413438570,-16659.0029713,0.00014017,2]
[330442100,1719413438580,-352.36113966,0.00014695,2]
[330442101,1719413438591,-218.510982,0.00014795,2]
[330442102,1719413438601,-661.12832609,0.000149,2]
[330442103,1719413438612,-164.81209326,0.00014918,2]
[330442104,1719413438622,-1000.0,0.00014998,2]
[330442105,1719413438632,-878.11857354,0.00015006,2]
[330442106,1719413438643,-352.36113963,0.00015106,2]
[330442107,1719413438653,-420.0,0.00015416,2]
[330442108,1719413438663,-352.36113963,0.00015517,2]
[330442109,1719413438674,-523.56066402,0.00015804,2]
[330442110,1719413438684,-10545.72017141,0.00015805,2]
[330442111,1719413438694,-1117.74863961,0.00015807,2]
[330442112,1719413438704,-933.34700406,0.00015926,2]
[330442113,1719413438713,-154.98370737,0.00015926,2]
[330442114,1719413438723,-352.36113963,0.00015927,2]
[330442115,1719413438734,-402.64531294,0.00015999,2]
[330442116,1719413438744,-154.96125969,0.00015999,2]
[330442117,1719413438753,-301.41675488,0.00015999,2]
[330442118,1719413438764,-335.7523045,0.00016016,2]
[330442119,1719413438774,-1487.2316115,0.00016208,2]
[330442120,1719413438784,-554.987,0.00016209,2]
[330442121,1719413438793,-2489.65120019,0.00016337,2]
[330442122,1719413438804,-352.36113963,0.00016338,2]
[330442123,1719413438815,-2000.0,0.00016338,2]
[330442124,1719413438825,-155.09281794,0.00016367,2]
[330442125,1719413438835,-1000.0,0.00016368,2]
[330442126,1719413438845,-154.83742071,0.00016383,2]
[330442127,1719413438855,-194.1101576,0.00016383,2]
[330442128,1719413438865,-156.32048258,0.00016383,2]
[330442129,1719413438874,-457.45943987,0.00016383,2]
[330442130,1719413438886,-490.28883306,0.00016384,2]
[330442131,1719413438896,-154.83742071,0.00016384,2]
[330442132,1719413438907,-179.54081427,0.00016384,2]
[330442133,1719413438918,-154.83742071,0.00016384,2]
[330442134,1719413438928,-1395.65495197,0.00016385,2]
[330442135,1719413438938,-159.70589002,0.00016385,2]
[330442136,1719413438948,-543.0636488,0.00016385,2]
[330442137,1719413438959,-1218.76273557,0.00016385,2]
[330442138,1719413438969,-2115.78838011,0.00016386,2]
[330442139,1719413438979,-155.13744224,0.00016387,2]
[330442140,1719413438988,-151.0,0.00016403,2]
[330442141,1719413438998,-565.90871239,0.00016436,2]
[330442142,1719413439008,-204.229383,0.00016436,2]
[330442143,1719413439018,-151.0,0.00016436,2]
[330442144,1719413439030,-151.0,0.00016436,2]
[330442145,1719413439040,-157.599125,0.00016436,2]
[330442146,1719413439051,-151.0,0.00016436,2]
[330442147,1719413439062,-151.0,0.00016436,2]
[330442148,1719413439073,-557.505357,0.00016436,2]
[330442149,1719413439083,-557.505357,0.00016436,2]
[330442150,1719413439094,-151.0,0.00016436,2]
[330442151,1719413439104,-2161.60987626,0.00016436,2]
[330442152,1719413439137,-2839.50874574,0.00016436,2]
[330442153,1719413439148,-279.612577,0.00016436,2]
[330442154,1719413439165,-4192.75686014,0.00016436,2]
[330442163,1719413440874,-2825.49865465,0.00015925,2]
[330442164,1719413440887,-597.70730701,0.00016287,2]
[330442165,1719413440897,-808.36176186,0.00016436,2]
[330442166,1719413440909,-279.612577,0.00016436,2]
[330442167,1719413440918,-151.0,0.00016436,2]
[330442168,1719413440927,-151.0,0.00016436,2]
[330442169,1719413440936,-151.0,0.00016436,2]
[330442170,1719413440945,-151.0,0.00016436,2]
[330442171,1719413440955,-462.62411,0.00016436,2]
[330442172,1719413440964,-462.62411,0.00016436,2]
[330442173,1719413440973,-151.0,0.00016436,2]
[330442174,1719413440983,-151.0,0.00016436,2]
[330442175,1719413440992,-462.62411,0.00016436,2]
[330442176,1719413441002,-462.62411,0.00016436,2]
[330442177,1719413441011,-151.0,0.00016436,2]
[330442178,1719413441020,-151.0,0.00016436,2]
[330442179,1719413441030,-151.0,0.00016436,2]
[330442180,1719413441039,-151.0,0.00016436,2]
[330442181,1719413441049,-151.0,0.00016436,2]
[330442182,1719413441059,-155.645517,0.00016436,2]
[330442183,1719413441068,-151.0,0.00016436,2]
[330442184,1719413441077,-151.0,0.00016436,2]
[330442185,1719413441087,-151.0,0.00016436,2]
[330442186,1719413441096,-151.0,0.00016436,2]
[330442187,1719413441106,-1044.711973,0.00016436,2]
[330442188,1719413441115,-1044.711973,0.00016436,2]
[330442189,1719413441124,-1044.711973,0.00016436,2]
[330442190,1719413441134,-1044.711973,0.00016436,2]
[330442191,1719413441143,-151.0,0.00016436,2]
[330442192,1719413441153,-151.0,0.00016436,2]
[330442193,1719413441168,-151.0,0.00016436,2]
[330442194,1719413441177,-151.0,0.00016436,2]
[330442195,1719413441185,-151.0,0.00016437,2]
[330442196,1719413441194,-11320.2527093,0.00016438,2]
[330442197,1719413441205,-500.0,0.00016438,2]
[330442198,1719413441218,-500.0,0.00016438,2]
[330442199,1719413441228,-151.0,0.00016438,2]
[330442200,1719413441237,-151.0,0.00016438,2]
[330442201,1719413441248,-185.862292,0.00016438,2]
[330442202,1719413441257,-151.0,0.00016438,2]
[330442203,1719413441265,-151.0,0.00016438,2]
[330442204,1719413441275,-231.281089,0.00016438,2]
[330442205,1719413441284,-151.0,0.00016438,2]
[330442206,1719413441294,-151.0,0.00016438,2]
[330442207,1719413441304,-500.0,0.00016438,2]
[330442208,1719413441314,-151.0,0.00016438,2]
[330442209,1719413441323,-151.0,0.00016438,2]
[330442210,1719413441332,-151.0,0.00016438,2]
[330442211,1719413441341,-151.0,0.00016438,2]
[330442212,1719413441350,-222.817907,0.00016438,2]
[330442213,1719413441360,-500.0,0.00016438,2]
[330442214,1719413441369,-151.0,0.00016438,2]
[330442215,1719413441378,-151.0,0.00016438,2]
[330442216,1719413441388,-151.0,0.00016438,2]
[330442217,1719413441397,-151.0,0.00016438,2]
[330442218,1719413441410,-206.014129,0.00016438,2]
[330442219,1719413441420,-708.35,0.00016438,2]
[330442220,1719413441429,-500.0,0.00016438,2]
[330442221,1719413441438,-151.0,0.00016438,2]
[330442222,1719413441448,-151.0,0.00016438,2]
[330442223,1719413441458,-151.0,0.00016438,2]
[330442224,1719413441467,-151.0,0.00016438,2]
[330442225,1719413441476,-151.0,0.00016438,2]
[330442226,1719413441486,-151.0,0.00016438,2]
[330442227,1719413441495,-151.0,0.00016438,2]
[330442228,1719413441505,-151.0,0.00016438,2]
[330442229,1719413441514,-151.0,0.00016438,2]
[330442230,1719413441525,-151.0,0.00016438,2]
[330442231,1719413441534,-151.0,0.00016438,2]
[330442232,1719413441543,-174.383324,0.00016438,2]
[330442233,1719413441553,-500.0,0.00016438,2]
[330442234,1719413441562,-288.96,0.00016438,2]
[330442235,1719413441571,-288.96,0.00016438,2]
[330442236,1719413441581,-288.96,0.00016438,2]
[330442237,1719413441591,-288.96,0.00016438,2]
[330442238,1719413441600,-288.96,0.00016438,2]
[330442239,1719413441609,-288.96,0.00016438,2]
[330442240,1719413441621,-288.96,0.00016438,2]
[330442241,1719413441631,-288.96,0.00016438,2]
[330442242,1719413441642,-288.96,0.00016438,2]
[330442243,1719413441652,-288.96,0.00016438,2]
[330442244,1719413441663,-288.96,0.00016438,2]
[330442245,1719413441672,-288.96,0.00016438,2]
[330442246,1719413441681,-288.96,0.00016438,2]
[330442247,1719413441691,-272.868512,0.00016438,2]
[330442248,1719413441700,-288.96,0.00016438,2]
[330442249,1719413441709,-288.96,0.00016438,2]
[330442250,1719413441719,-288.96,0.00016438,2]
[330442251,1719413441728,-288.96,0.00016438,2]
[330442252,1719413441738,-288.96,0.00016438,2]
[330442253,1719413441747,-288.96,0.00016438,2]
[330442254,1719413441756,-288.96,0.00016438,2]
[330442255,1719413441766,-151.0,0.00016438,2]
[330442256,1719413441776,-224.265466,0.00016438,2]
[330442257,1719413441785,-500.0,0.00016438,2]
[330442258,1719413441795,-500.0,0.00016438,2]
[330442259,1719413441804,-500.0,0.00016438,2]
[330442260,1719413441813,-151.0,0.00016438,2]
[330442261,1719413441823,-151.0,0.00016438,2]
[330442262,1719413441832,-151.0,0.00016438,2]
[330442263,1719413441842,-246.287202,0.00016438,2]
[330442264,1719413441852,-500.0,0.00016438,2]
[330442265,1719413441861,-500.0,0.00016438,2]
[330442266,1719413441870,-500.0,0.00016438,2]
[330442267,1719413441881,-368.69166672,0.00016438,2]
[330442268,1719413441891,-500.0,0.00016438,2]
[330442269,1719413441900,-372.13,0.00016438,2]
[330442270,1719413441911,-3793.76,0.00016438,2]
[330442271,1719413441921,-500.0,0.00016438,2]
[330442272,1719413441931,-500.0,0.00016438,2]
[330442273,1719413441941,-500.0,0.00016438,2]
[330442274,1719413441950,-500.0,0.00016438,2]
[330442275,1719413441960,-500.0,0.00016438,2]
[330442276,1719413441970,-500.0,0.00016438,2]
[330442277,1719413441979,-500.0,0.00016438,2]
[330442278,1719413441989,-160.577548,0.00016438,2]
[330442279,1719413441998,-500.0,0.00016438,2]
[330442280,1719413442008,-500.0,0.00016438,2]
[330442281,1719413442017,-500.0,0.00016438,2]
[330442282,1719413442027,-1049.18,0.00016438,2]
[330442283,1719413442037,-151.0,0.00016438,2]
[330442284,1719413442046,-151.0,0.00016438,2]
[330442285,1719413442056,-914.47,0.00016438,2]
[330442286,1719413442065,-151.0,0.00016438,2]
[330442287,1719413442076,-151.0,0.00016438,2]
[330442288,1719413442085,-151.0,0.00016438,2]
[330442289,1719413442095,-158.828117,0.00016438,2]
[330442290,1719413442104,-500.0,0.00016438,2]
[330442291,1719413442114,-500.0,0.00016438,2]
[330442292,1719413442123,-500.0,0.00016438,2]
[330442293,1719413442133,-500.0,0.00016438,2]
[330442294,1719413442143,-500.0,0.00016438,2]
[330442295,1719413442152,-500.0,0.00016438,2]
[330442296,1719413442163,-500.0,0.00016438,2]
[330442297,1719413442172,-321.137677,0.00016438,2]
[330442298,1719413442181,-151.0,0.00016438,2]
[330442299,1719413442191,-151.0,0.00016438,2]
[330442300,1719413442200,-151.0,0.00016438,2]
[330442301,1719413442212,-151.0,0.00016438,2]
[330442302,1719413442227,-151.0,0.00016438,2]
[330442303,1719413442236,-151.0,0.00016438,2]
[330442304,1719413442248,-151.0,0.00016438,2]
[330442305,1719413442265,-151.0,0.00016438,2]
[330442306,1719413442276,-190.854964,0.00016438,2]
[330442307,1719413442292,-151.0,0.00016438,2]
[330442308,1719413442305,-500.0,0.00016438,2]
[330442309,1719413442314,-505.65994919,0.00016438,2]
[330442310,1719413442323,-501.49708824,0.00016438,2]
[330442311,1719413442333,-502.84191128,0.00016438,2]
[330442312,1719413442343,-151.0,0.00016438,2]
[330442313,1719413442352,-151.0,0.00016438,2]
[330442314,1719413442362,-151.0,0.00016438,2]
[330442315,1719413442371,-530.12306871,0.00016438,2]
[330442316,1719413442381,-151.0,0.00016438,2]
[330442317,1719413442391,-151.0,0.00016438,2]
[330442318,1719413442400,-151.0,0.00016438,2]
[330442319,1719413442410,-151.0,0.00016438,2]
[330442320,1719413442420,-151.0,0.00016438,2]
[330442321,1719413442429,-500.0,0.00016438,2]
[330442322,1719413442439,-500.0,0.00016438,2]
[330442323,1719413442448,-502.24750982,0.00016438,2]
[330442324,1719413442458,-500.0,0.00016438,2]
[330442325,1719413442467,-557.505357,0.00016438,2]
[330442326,1719413442477,-557.505357,0.00016438,2]
[330442327,1719413442486,-557.505357,0.00016438,2]
[330442328,1719413442496,-557.505357,0.00016438,2]
[330442329,1719413442506,-557.505357,0.00016438,2]
[330442330,1719413442516,-557.505357,0.00016438,2]
[330442331,1719413442525,-500.0,0.00016438,2]
[330442332,1719413442535,-557.505357,0.00016438,2]
[330442333,1719413442545,-557.505357,0.00016438,2]
[330442334,1719413442554,-557.505357,0.00016438,2]
[330442335,1719413442564,-557.505357,0.00016438,2]
[330442336,1719413442573,-557.505357,0.00016438,2]
[330442337,1719413442583,-541.04190218,0.00016438,2]
[330442338,1719413442592,-557.505357,0.00016438,2]
[330442339,1719413442602,-557.505357,0.00016438,2]
[330442340,1719413442611,-557.505357,0.00016438,2]
[330442341,1719413442620,-557.505357,0.00016438,2]
[330442342,1719413442629,-557.505357,0.00016438,2]
[330442343,1719413442639,-557.505357,0.00016438,2]
[330442344,1719413442648,-502.06762133,0.00016438,2]
[330442346,1719413442659,-557.505353,0.00016438,2]
[330442348,1719413442668,-213.9586788,0.00016438,2]
[330442350,1719413442678,-240.66874463,0.00016438,2]
[330442352,1719413442688,-500.0,0.00016438,2]
[330442354,1719413442701,-500.93782508,0.00016438,2]
[330442356,1719413442711,-587.19,0.00016438,2]
[330442358,1719413442721,-3981.67,0.00016438,2]
[330442359,1719413442731,-500.0,0.00016438,2]
[330442360,1719413442740,-500.0,0.00016438,2]
[330442361,1719413442750,-500.0,0.00016438,2]
[330442362,1719413442760,-151.0,0.00016438,2]
[330442363,1719413442769,-151.0,0.00016438,2]
[330442364,1719413442779,-151.0,0.00016438,2]
[330442365,1719413442788,-151.0,0.00016438,2]
[330442366,1719413442798,-151.0,0.00016438,2]
[330442367,1719413442807,-1545.1,0.00016438,2]
[330442368,1719413442817,-500.0,0.00016438,2]
[330442369,1719413442826,-500.0,0.00016438,2]
[330442370,1719413442836,-500.0,0.00016438,2]
[330442371,1719413442846,-501.58349996,0.00016438,2]
[330442372,1719413442856,-500.0,0.00016438,2]
[330442373,1719413442866,-500.0,0.00016438,2]
[330442374,1719413442875,-369.14114341,0.00016438,2]
[330442375,1719413442886,-1913.32,0.00016438,2]
[330442376,1719413442896,-5001.118622,0.00016438,2]
[330442377,1719413442908,-5001.118622,0.00016438,2]
[330442378,1719413442918,-5001.118622,0.00016438,2]
[330442379,1719413442927,-5001.118622,0.00016438,2]
[330442380,1719413442937,-5001.118622,0.00016438,2]
[330442381,1719413442946,-279.612577,0.00016438,2]
[330442382,1719413442955,-4947.09309507,0.00016438,2]
[330442387,1719413443132,-54.02552693,0.00016438,2]
[330442388,1719413443142,-279.612577,0.00016438,2]
[330442389,1719413443153,-5001.118622,0.00016438,2]
[330442390,1719413443165,-279.612577,0.00016438,2]
[330442391,1719413443174,-279.612577,0.00016438,2]
[330442392,1719413443183,-5001.118622,0.00016438,2]
[330442393,1719413443192,-279.612577,0.00016438,2]
[330442394,1719413443202,-279.612577,0.00016438,2]
[330442395,1719413443215,-3753.24599164,0.00016438,2]
[330442396,1719413443227,-1247.87263036,0.00016438,2]
[330442397,1719413443236,-279.612577,0.00016438,2]
[330442398,1719413443247,-279.612577,0.00016438,2]
[330442399,1719413443257,-5001.118622,0.00016438,2]
[330442400,1719413443266,-279.612577,0.00016438,2]
[330442401,1719413443275,-5001.118622,0.00016438,2]
[330442402,1719413443284,-5001.118622,0.00016438,2]
[330442403,1719413443296,-279.612577,0.00016438,2]
[330442404,1719413443305,-5001.118622,0.00016438,2]
[330442406,1719413443315,-279.612577,0.00016438,2]
[330442408,1719413443325,-5001.118622,0.00016438,2]
[330442409,1719413443334,-279.612577,0.00016438,2]
[330442410,1719413443343,-311.7733049,0.00016438,2]
[330442416,1719413443874,-869.94591213,0.00016367,2]
[330442417,1719413443887,-330.29329238,0.00016367,2]
[330442418,1719413443899,-403.92158638,0.00016367,2]
[330442419,1719413443910,-1606.44019868,0.00016438,2]
[330442420,1719413443921,-1610.0,0.00016438,2]
[330442432,1719413448782,-154.85288975,0.00016437,2]
[330442433,1719413448792,-311.31498983,0.00016438,2]
[330442434,1719413546923,150.84915085,0.00020474,30]
[330442435,1719413546972,150.84915085,0.00020065,120]
[330442436,1719413550062,253.18,0.0001725,62]
[330442437,1719413551225,2038.0,0.0001725,62]
[330442438,1719413551335,153.46,0.0001725,62]
[330442439,1719413551448,150.5,0.0001725,62]
[330442440,1719413551757,2038.0,0.0001724,62]
[330442441,1719413552081,150.5,0.0001724,62]
[330442442,1719413552296,2038.0,0.0001723,62]
[330442443,1719413552645,154.65,0.0001723,62]
[330442444,1719413552787,2038.0,0.0002294,62]
[330442445,1719413553280,2038.0,0.0002293,62]
[330442446,1719413553781,2038.0,0.0002292,62]
[330442448,1719413642681,6109.759789,0.000225,30]
[330442449,1719413670100,150.5,0.0001725,62]
[330442450,1719413670148,150.5,0.0001725,62]
[330442451,1719413670250,150.5,0.0001725,62]
[330442452,1719413670758,150.5,0.0001724,62]
[330442453,1719413670795,150.5,0.0001724,62]
[330442454,1719413670830,150.5,0.0001724,62]
[330442455,1719413671122,150.5,0.0001723,62]
[330442456,1719413671160,152.75,0.0001723,62]
[330442457,1719413671241,157.73,0.0001723,62]
[330442458,1719413671603,815.0,0.0001725,62]
[330442459,1719413672081,815.0,0.0001724,62]
[330442460,1719413672553,815.0,0.0001723,62]
[330442461,1719413673150,815.0,0.00022489,62]
[330442462,1719413673681,815.0,0.00022479,62]
[330442463,1719413674288,815.0,0.00022469,62]
[330442464,1719413791875,326.0,0.00016976,62]
[330442465,1719413792415,326.0,0.00016966,62]
[330442466,1719413792993,326.0,0.00016956,62]
[330442467,1719413794088,326.0,0.00021743,62]
[330442468,1719413794588,326.0,0.00021733,62]
[330442469,1719413795233,326.0,0.00021723,62]
[330442470,1719413912470,150.5,0.00016976,62]
[330442471,1719413912974,150.5,0.00016966,62]
[330442472,1719413913473,150.5,0.00016956,62]
[330442473,1719413913946,150.5,0.000219,62]
[330442474,1719413914438,150.5,0.0002189,62]
[330442475,1719413914984,150.5,0.0002188,62]
[330442477,1719413958258,150.84915085,0.000202,30]
[330442478,1719413958308,150.84915085,0.00019796,120]
[330442479,1719414034775,150.5,0.00016976,62]
[330442480,1719414035364,253.15,0.00016966,62]
[330442489,1719414535880,150.83408251,0.00020251,30]
[330442490,1719414535942,150.83408251,0.00019846,120]
[330442605,1719414643888,-335.7523045,0.00014015,2]
[330442608,1719414643898,-135.64734746,0.00014428,2]
[330442646,1719414750516,150.5,0.00016961,62]
[330442647,1719414751162,150.5,0.00016951,62]
[330442648,1719414751502,150.5,0.00016941,62]
[330442649,1719414751986,292.5,0.0002172,62]
[330442666,1719415053193,246.41,0.00010959,2]
[330442667,1719415058195,150.84915085,0.00020375,30]
[330442668,1719415064000,205.34,0.00010959,2]
[330442669,1719415074539,171.11,0.00010959,2]
[330442670,1719415085101,855.6,0.00010959,2]
[330442671,1719415108883,-17231.68409106,0.00014012,2]
[330442672,1719415108906,-300.0,0.00014012,2]
[330442673,1719415108927,-42191.07388924,0.00014015,2]
[330442674,1719415108948,-565.90871239,0.00014327,2]
[330442675,1719415108968,-282.93616103,0.00014327,2]
[330442676,1719415108988,-158.39310864,0.00014427,2]
[330442677,1719415109009,-1488.25210834,0.00014428,2]
[330442678,1719415109030,-1026.288296,0.00014457,2]
[330442679,1719415109049,-661.12832609,0.00014632,2]
[330442680,1719415109069,-231.269643,0.00014795,2]
[330442681,1719415109092,-4243.2717087,0.00014795,2]
[330442682,1719415109112,-933.34700406,0.00014999,2]
[330442683,1719415109131,-244.01101863,0.00015,2]
[330442684,1719415114865,282.93616103,0.00014327,2]
[330442685,1719415120312,565.90871239,0.0001431,2]
[330442686,1719415145054,932.56324959,0.00013283,2]
[330442687,1719415152740,282.93616103,0.00013283,2]
[330442688,1719415154450,661.12832609,0.00013283,2]
[330442689,1719415161628,1241.01752056,0.00013283,2]
[330442690,1719415161793,1078.57995361,0.00013283,2]
[330442691,1719415162934,202.40849324,0.00013283,2]
[330442695,1719415322825,1914.02350809,0.00014999,2]
[330442697,1719415374356,154.83742071,0.00014999,2]
[330442698,1719415394277,5281.22672423,0.00014664,2]
[330442699,1719415394309,208.37564863,0.00014999,2]
[330442700,1719415449975,161.49054062,0.00014999,2]
[330442701,1719415455655,227.600898,0.00014795,2]
[330442702,1719415477897,335.7523045,0.00014999,2]
[330442703,1719415492047,154.83742071,0.00014999,2]
[330442704,1719415527439,4474.21163056,0.00014968,2]
[330442705,1719415530542,200.68993486,0.00014999,2]
[330442707,1719415574916,2081.91132437,0.00014999,2]
[330442712,1719415646611,-10000.0,0.00014918,2]
[330442719,1719415716257,-522.43491884,0.00014999,2]
[330442720,1719415716283,-256.99308137,0.00014999,2]
[330442721,1719415716309,-1103.20005274,0.00015,2]
[330442722,1719415716343,-2441.7391813,0.00015006,2]
[330442723,1719415716355,-522.43491884,0.00015006,2]
[330442724,1719415716366,-256.99308137,0.00015006,2]
[330442725,1719415716386,-1103.20005274,0.00015006,2]
[330442726,1719415716397,-5279.63747855,0.00015006,2]
[330442727,1719415716406,-300.0,0.00015068,2]
[330442728,1719415716415,-565.90871239,0.00015069,2]
[330442729,1719415716424,-2416.91747958,0.00015069,2]
[330442730,1719415716433,-1041.54104228,0.0001508,2]
[330442731,1719415743032,-651.01766767,0.0001508,2]
[330442732,1719415743075,-423.22967016,0.0001508,2]
[330442733,1719415743110,-49.9597408,0.00015095,2]
[330442780,1719415834428,-154.83742071,0.00015095,2]
[330442781,1719415834438,-462.09473335,0.00015576,2]
[330442783,1719415834450,-418.89313081,0.00015576,2]
[330442786,1719415834462,-4345.51897621,0.00015576,2]
[330442787,1719415834472,-187.86035372,0.00015737,2]
[330442789,1719415834481,-1103.20005274,0.00015807,2]
[330442791,1719415834491,-990.65106447,0.00015835,2]
[330442793,1719415834501,-401.65252924,0.00015836,2]
[330442795,1719415834510,-150.0,0.00015981,2]
[330442796,1719415834519,-33.85709008,0.00015996,2]
[330442826,1719415841264,-6974.47504509,0.00015575,2]
[330442828,1719415841274,-2123.95279144,0.00015807,2]
[330442830,1719415841283,-1569.01894779,0.00015999,2]
[330442831,1719415841293,-911.593,0.00016048,2]
[330442833,1719415841302,-154.83742071,0.00016099,2]
[330442834,1719415841312,-1118.02971172,0.00016099,2]
[330442836,1719415841321,-153.0,0.000161,2]
[330442839,1719415841330,-153.0,0.000161,2]
[330442841,1719415841339,-232.79354395,0.0001629,2]
[330442844,1719415841348,-13852.82361253,0.00016384,2]
[330443137,1719415844573,-12209.44943871,0.00016384,2]
[330443140,1719415844582,-164.85188126,0.00016385,2]
[330443143,1719415844592,-490.28883306,0.00016385,2]
[330443146,1719415844601,-309.597524,0.00016385,2]
[330443149,1719415844610,-516.9453028,0.00016385,2]
[330443152,1719415844620,-205.28188896,0.00016385,2]
[330443155,1719415844628,-2040.81356743,0.00016385,2]
[330443158,1719415844638,-239.56788705,0.00016385,2]
[330443159,1719415844647,-208.83961786,0.00016385,2]
[330443161,1719415844657,-11118.98907716,0.00016385,2]
[330443163,1719415844666,-216.810215,0.00016386,2]
[330443165,1719415844678,-154.83742071,0.00016386,2]
[330443167,1719415844687,-154.83742071,0.00016386,2]
[330443169,1719415844696,-154.83742071,0.00016386,2]
[330443171,1719415844706,-269.37897066,0.00016386,2]
[330443173,1719415844715,-292.99777244,0.00016386,2]
[330443175,1719415844727,-597.70730701,0.00016386,2]
[330443177,1719415844736,-155.08509867,0.00016386,2]
[330443179,1719415844745,-155.25403334,0.00016386,2]
[330443181,1719415844755,-195.47966853,0.00016386,2]
[330443183,1719415844764,-154.99225039,0.00016386,2]
[330443185,1719415844774,-402.64531294,0.00016386,2]
[330443187,1719415844783,-318.0694556,0.00016386,2]
[330443189,1719415844793,-1313.011853,0.00016386,2]
[330443191,1719415844803,-723.95900882,0.00016386,2]
[330443193,1719415844812,-1487.60034683,0.00016386,2]
[330443195,1719415844822,-207.71530322,0.00016386,2]
[330443197,1719415844832,-180.50662285,0.00016387,2]
[330443199,1719415844841,-947.4992689,0.00016387,2]
[330443200,1719415844851,-176.00680323,0.00016387,2]
[330443202,1719415844860,-222.44452854,0.00016387,2]
[330443204,1719415844871,-457.45943987,0.00016387,2]
[330443206,1719415844880,-286.39912426,0.00016387,2]
[330443208,1719415844890,-179.54081427,0.00016387,2]
[330443211,1719415844900,-208.37564863,0.00016387,2]
[330443212,1719415844910,-255.49352282,0.00016387,2]
[330443215,1719415844920,-154.83742071,0.00016387,2]
[330443217,1719415844930,-299.51409041,0.00016387,2]
[330443218,1719415844939,-158.20537401,0.00016387,2]
[330443220,1719415844949,-154.83742071,0.00016387,2]
[330443222,1719415844958,-661.12832609,0.00016387,2]
[330443224,1719415844973,-154.99225039,0.00016387,2]
[330443226,1719415844984,-282.93616103,0.00016387,2]
[330443228,1719415844993,-1284.76673272,0.00016388,2]
[330443230,1719415845002,-154.99225039,0.00016388,2]
[330443232,1719415845014,-154.83742071,0.00016389,2]
[330443234,1719415845023,-32046.9454962,0.000164,2]
[330443236,1719415845033,-420.157192,0.000164,2]
[330443238,1719415845042,-420.157192,0.000164,2]
[330443240,1719415845051,-151.0,0.000164,2]
[330443241,1719415845061,-151.0,0.000164,2]
[330443243,1719415845071,-151.0,0.000164,2]
[330443245,1719415845081,-151.0,0.000164,2]
[330443247,1719415845090,-2476.213923,0.000164,2]
[330443249,1719415845100,-2476.213923,0.000164,2]
[330443251,1719415845109,-151.0,0.000164,2]
[330443253,1719415845119,-160.623921,0.000164,2]
[330443255,1719415845129,-160.623921,0.000164,2]
[330443257,1719415845139,-153.0,0.000164,2]
[330443259,1719415845149,-197.144922,0.000164,2]
[330443261,1719415845158,-160.055685,0.000164,2]
[330443263,1719415845168,-160.055685,0.000164,2]
[330443265,1719415845179,-211.267735,0.000164,2]
[330443267,1719415845189,-211.267735,0.000164,2]
[330443269,1719415845198,-159.35965211,0.000164,2]
[330443270,1719415845207,-221.837987,0.000164,2]
[330443272,1719415845216,-221.837987,0.000164,2]
[330443274,1719415845226,-335.7523045,0.000164,2]